bitfinex-derivatives/quotes_ETHF0:USTF0_20251021
["timestamp","ask_amount","ask_price","bid_price","bid_amount"]
[1761069296088,0.9236,4018.4,4018.3,12.96356]
[1761069296288,0.9236,4018.4,4018.3,12.96256]
[1761069296581,0.9236,4018.4,4018.3,9.307]
[1761069297390,0.9236,4018.2,4017.9,0.8927592]
[1761069297591,0.9236,4018.2,4018.0,0.44779]
[1761069298289,0.9236,4018.2,4018.0,1.3405492]
[1761069299090,0.9236,4018.2,4018.1,0.8927592]
[1761069299390,0.3582,4018.5,4018.0,0.44779]
[1761069299391,0.9236,4018.4,4018.2,0.44777]
[1761069299584,0.9236,4018.4,4018.3,9.305]
[1761069300892,0.9236,4018.4,4018.3,12.5128]
[1761069301291,0.9236,4018.4,4018.3,13.40587631]
[1761069301492,0.9236,4018.4,4018.3,12.5128]
[1761069301992,0.9236,4018.3,4018.1,0.89307631]
[1761069302191,0.9236,4018.2,4018.0,1.34087631]
[1761069302385,0.9236,4018.2,4018.1,10.19707631]
[1761069302893,0.9236,4018.2,4018.1,9.304]
[1761069303392,1.32661822,4019.0,4018.9,0.4477]
[1761069303593,1.32661822,4019.0,4018.9,9.7507]
[1761069303788,1.32661822,4019.0,4018.9,10.6436865]
[1761069304091,0.40301822,4019.0,4018.9,10.6436865]
[1761069304292,1.32661822,4019.0,4018.9,10.6436865]
[1761069305886,1.32661822,4019.0,4018.9,9.7507]
[1761069306087,0.00181822,4019.0,4018.9,11.09017975]
[1761069306288,0.00181822,4019.0,4018.9,14.7507]
[1761069306884,0.00181822,4019.0,4018.9,9.7507]
[1761069307590,0.9236,4019.8,4019.6,0.44761]
[1761069307790,1.2818,4020.0,4019.8,0.4476]
[1761069307996,0.9236,4020.3,4020.2,0.44755]
[1761069308190,0.44746,4021.1,4020.5,0.44752]
[1761069308498,0.3582,4021.2,4020.8,0.44748]
[1761069308797,0.9236,4020.3,4020.2,3.2078]
[1761069308996,0.9236,4020.3,4019.9,0.89201758]
[1761069309198,0.9236,4019.6,4019.5,3.2078]
[1761069309588,5.9236,4019.6,4019.5,3.20992263]
[1761069309794,0.9236,4019.6,4019.5,3.20992263]
[1761069311694,0.3582,4020.0,4019.5,3.20992263]
[1761069311888,0.3582,4020.0,4019.9,0.44758]
[1761069312088,0.3582,4020.0,4019.9,9.74258]
[1761069312288,1.2818,4020.0,4019.9,9.74258]
[1761069313093,0.9236,4020.4,4020.2,0.44754]
[1761069313297,0.9236,4020.4,4020.3,9.295]
[1761069313893,1.2818,4020.6,4020.4,0.44753]
[1761069314090,0.9236,4020.5,4020.3,9.295]
[1761069314401,0.9236,4020.5,4020.3,9.74254]
[1761069316598,0.3582,4020.6,4020.2,3.2078]
[1761069316802,0.9236,4020.3,4020.2,3.2078]
[1761069319593,0.9236,4020.3,4020.2,3.65535]
[1761069320298,0.9236,4020.3,4020.2,3.2078]
[1761069321693,0.8385,4019.9,4019.7,3.2078]
[1761069322006,0.8385,4019.9,4019.8,9.288]
[1761069323701,0.8385,4019.9,4019.8,9.7356]
[1761069325499,0.8385,4019.9,4019.8,9.288]
[1761069326702,0.8385,4021.4,4021.0,0.44746]
[1761069326905,0.88919357,4022.3,4021.2,0.1605]
[1761069327100,0.3326,4022.4,4020.6,1.27926]
[1761069327101,41.1326,4022.4,4021.7,3.2078]
[1761069327405,0.44735,4022.1,4021.7,12.4908]
[1761069327605,41.1326,4022.4,4021.7,12.4908]
[1761069328104,0.36042143,4021.8,4021.7,9.283]
[1761069328902,1.19892143,4021.8,4021.7,12.4908]
[1761069329703,0.84072143,4021.8,4021.7,12.4908]
[1761069330299,1.17332143,4021.8,4021.7,12.4908]
[1761069331203,6.17332143,4021.8,4021.7,3.2078]
[1761069332511,1.17332143,4021.8,4021.7,3.2078]
[1761069332810,6.17332143,4021.8,4021.7,3.2078]
[1761069334409,1.61854,4021.2,4021.1,5.919]
[1761069334609,0.44746,4021.0,4020.9,3.2078]
[1761069334806,1.28596,4021.0,4020.9,12.4838]
[1761069335304,0.8385,4021.0,4020.9,12.4838]
[1761069335704,1.28596,4021.0,4020.9,12.4838]
[1761069336707,0.8385,4021.0,4020.9,12.4838]
[1761069337007,1.365,4021.0,4020.9,12.8048]
[1761069337210,1.81246,4021.0,4020.9,12.8048]
[1761069337507,2.34576,4021.0,4020.9,12.4838]
[1761069338309,2.34576,4021.0,4020.9,3.2078]
[1761069338510,0.44755,4020.2,4020.0,0.66752971]
[1761069338718,0.44762,4019.7,4019.5,0.00212263]
[1761069339108,0.8385,4019.6,4019.5,0.00212263]
[1761069341111,1.28612,4019.6,4019.5,0.00212263]
[1761069341310,1.28612,4019.6,4018.7,3.2078]
[1761069341311,1.61881,4018.8,4018.7,3.2078]
[1761069341505,1.1711,4018.8,4018.7,3.2078]
[1761069341812,0.3326,4019.4,4018.8,0.1605]
[1761069342117,0.8385,4019.8,4019.7,0.4476]
[1761069342415,0.84059296,4019.8,4019.7,0.45039502]
[1761069342915,0.84059296,4019.8,4019.7,0.00279502]
[1761069349308,1.90039296,4019.8,4019.7,0.00279502]
[1761069349508,1.90039296,4019.8,4019.7,0.16329502]
[1761069351920,1.90039296,4019.8,4019.7,0.32379502]
[1761069352307,1.36709296,4019.8,4019.7,0.32379502]
[1761069352615,0.79649296,4019.8,4019.7,0.32379502]
[1761069352810,0.00209296,4019.8,4019.7,5.37319502]
[1761069353011,1.8446,4020.4,4020.3,0.0494]
[1761069353213,1.8446,4020.4,4020.3,9.265]
[1761069353715,2.29213,4020.4,4020.3,9.265]
[1761069353916,2.29213,4020.4,4020.3,9.3144]
[1761069354218,2.29496388,4020.4,4020.3,9.3144]
[1761069355915,2.29496388,4020.4,4020.3,9.265]
[1761069356415,0.44756,4020.1,4019.8,3.2572]
[1761069356624,0.44756,4020.1,4019.8,3.7048]
[1761069356625,0.7944,4019.9,4019.8,3.7048]
[1761069356819,0.7944,4019.9,4019.8,13.0172]
[1761069357014,1.3366,4019.9,4019.8,13.0172]
[1761069357518,1.3366,4019.9,4019.8,12.5696]
[1761069357822,0.7944,4019.9,4019.8,13.0172]
[1761069358123,1.8446,4019.9,4019.8,3.3066]
[1761069358420,1.8446,4019.9,4019.8,13.0152]
[1761069358421,1.3366,4019.9,4019.8,13.0152]
[1761069358926,1.3366,4019.9,4019.8,12.5676]
[1761069359215,1.3366,4019.9,4019.8,13.0152]
[1761069359415,1.3366,4019.9,4019.8,13.68272971]
[1761069359622,1.3366,4019.9,4019.8,13.0152]
[1761069359824,1.3366,4019.9,4019.8,9.3598]
[1761069360021,1.242,4019.8,4019.7,0.00279502]
[1761069360324,2.2922,4019.8,4019.7,0.00279502]
[1761069360714,7.2922,4019.8,4019.7,0.00279502]
[1761069361323,2.29226,4019.2,4019.1,6.553]
[1761069362327,2.29226,4019.2,4018.4,0.85393178]
[1761069362328,1.24213,4018.6,4018.4,0.85393178]
[1761069362623,4.312,4018.5,4018.4,0.18846932]
[1761069362819,45.112,4018.5,4018.4,0.00206725]
[1761069363320,0.7944,4019.0,4018.8,0.4477]
[1761069363521,0.7944,4019.6,4019.4,0.44764]
[1761069363718,0.7944,4019.8,4019.7,0.7561]
[1761069364520,1.242,4019.8,4019.5,10.46073]
[1761069364824,0.7944,4019.7,4019.5,10.46073]
[1761069365028,0.7944,4019.7,4019.5,9.257]
[1761069365029,0.7944,4019.6,4019.5,9.257]
[1761069365829,0.7944,4019.6,4019.0,0.66752971]
[1761069366017,3.2078,4019.9,4019.0,0.66752971]
[1761069366018,0.7944,4019.1,4019.0,0.66752971]
[1761069366219,0.44771,4018.8,4018.7,9.256]
[1761069366420,1.24211,4018.8,4018.7,9.256]
[1761069366623,0.7944,4019.2,4018.8,0.7561]
[1761069367331,0.44773,4018.6,4018.5,0.66752971]
[1761069367619,0.7944,4018.5,4018.4,0.00206725]
[1761069368828,3.2078,4018.7,4018.4,0.75816725]
[1761069369126,3.2078,4018.7,4018.4,0.00206725]
[1761069369324,3.2078,4018.7,4018.5,0.7561]
[1761069369829,3.65552,4018.7,4018.6,0.7561]
[1761069370127,1.24208,4019.1,4018.4,0.66959696]
[1761069370326,3.2078,4019.2,4018.9,0.4477]
[1761069370531,3.2078,4019.2,4019.1,1.20377]
[1761069370824,0.44764,4019.5,4019.2,0.44766]
[1761069371026,0.7944,4019.5,4019.3,0.44764]
[1761069371231,3.2078,4019.7,4019.4,0.7561]
[1761069371529,3.2078,4019.7,4019.6,0.7561]
[1761069372428,4.0022,4019.7,4019.6,0.7561]
[1761069373429,4.44981,4019.7,4019.5,0.44762]
[1761069373634,3.2078,4019.7,4019.6,0.7561]
[1761069373930,0.44764,4019.5,4019.4,0.44764]
[1761069374134,0.7944,4019.5,4019.4,1.20374]
[1761069374521,0.4476,4019.8,4019.6,1.20371]
[1761069374726,1.242,4019.8,4019.7,0.7561]
[1761069375026,1.24202,4019.6,4019.5,0.7561]
[1761069375426,0.7944,4019.6,4019.5,0.7561]
[1761069375929,3.2078,4020.2,4019.5,0.7561]
[1761069375930,0.4476,4019.8,4019.5,0.7561]
[1761069376133,0.7944,4019.8,4019.6,0.44761]
[1761069376332,0.7944,4020.1,4019.4,0.2941]
[1761069376537,3.2078,4020.2,4020.1,0.7561]
[1761069377831,0.00283388,4020.4,4020.2,0.44755]
[1761069378036,0.79723388,4020.4,4020.3,0.7561]
[1761069378631,0.00283388,4020.4,4020.3,0.7561]
[1761069379043,0.76133388,4020.4,4020.3,0.7561]
[1761069380340,0.7585,4020.2,4019.8,0.66752971]
[1761069380539,0.7585,4020.1,4019.9,1.15428]
[1761069380740,0.7585,4020.1,4020.0,0.7756]
[1761069381232,0.4476,4019.8,4019.7,0.00693971]
[1761069381544,0.4476,4019.8,4018.4,0.00206725]
[1761069381545,1.19374,4018.5,4018.4,0.00206725]
[1761069381730,4.40154,4018.5,4018.4,0.00206725]
[1761069382036,50.20154,4018.5,4018.4,0.00206725]
[1761069382246,50.42870505,4018.5,4018.4,0.00206725]
[1761069382542,50.42870505,4018.5,4017.3,3.162]
[1761069382543,1.19381,4017.9,4017.3,3.162]
[1761069382731,4.40161,4017.9,4017.3,3.162]
[1761069382934,4.40161,4017.9,4017.4,0.7756]
[1761069383334,4.40161,4017.9,4017.8,0.02760661]
[1761069384945,3.65561,4017.9,4017.8,0.80320661]
[1761069387043,3.2078,4017.9,4017.8,5.80320661]
[1761069387842,3.2078,4017.9,4017.8,0.80320661]
[1761069390942,3.9538,4017.9,4017.8,0.80320661]
[1761069391139,3.2078,4017.9,4017.8,0.80320661]
[1761069392446,3.9538,4017.9,4017.8,0.80320661]
[1761069392846,1.11983,4016.9,4016.5,0.7756]
[1761069393041,3.9538,4016.6,4016.5,0.7756]
[1761069393738,3.20984688,4016.6,4016.5,0.00258166]
[1761069393943,3.65779688,4016.6,4016.5,0.00258166]
[1761069394153,1.12,4016.3,4015.4,3.40417707]
[1761069394344,0.4481,4015.3,4015.1,0.7756]
[1761069394644,0.4481,4015.3,4014.7,0.7756]
[1761069394645,0.44815,4014.9,4014.7,0.7756]
[1761069394846,0.746,4014.7,4013.8,3.2078]
[1761069395040,0.746,4014.7,4013.6,0.7756]
[1761069395041,0.44822,4014.2,4014.1,0.7756]
[1761069395347,10.36333,4015.1,4014.1,0.7756]
[1761069395348,40.8,4015.2,4014.7,0.7756]
[1761069395540,3.2078,4015.5,4014.7,0.7756]
[1761069395941,41.24809,4015.4,4014.7,0.44816]
[1761069396140,3.2078,4015.0,4014.8,0.7756]
[1761069396438,0.44819,4014.5,4014.2,0.7756]
[1761069397452,0.4482,4014.4,4014.2,0.7756]
[1761069397644,0.746,4014.8,4014.2,0.7756]
[1761069397844,1.19416,4014.8,4014.2,0.7756]
[1761069398748,3.65594,4015.0,4014.2,0.7756]
[1761069399049,3.65594,4015.0,4014.4,0.44819]
[1761069399253,3.2078,4015.0,4014.6,0.7756]
[1761069399650,3.2078,4015.0,4014.7,0.7756]
[1761069400651,3.2078,4015.0,4014.9,0.7756]
[1761069404649,3.2078,4015.0,4014.6,1.22377]
[1761069404849,0.746,4014.9,4014.7,0.7756]
[1761069405556,0.44816,4014.8,4014.7,0.7756]
[1761069406055,3.2078,4015.0,4014.3,0.7756]
[1761069406253,3.2078,4014.4,4014.3,0.7756]
[1761069406950,44.0078,4014.4,4014.3,0.7756]
[1761069407351,0.746,4014.2,4014.1,9.24544029]
[1761069407552,1.19422,4014.2,4014.1,0.00244029]
[1761069408257,41.99422,4014.2,4014.1,0.00244029]
[1761069408658,0.746,4013.9,4012.9,0.7756]
[1761069408854,1.19435,4013.1,4012.9,0.7756]
[1761069409053,0.746,4013.2,4012.6,3.2078]
[1761069409261,0.44838,4012.8,4012.7,0.7756]
[1761069409760,0.00225216,4012.8,4012.7,0.7773544]
[1761069410258,0.00225216,4012.8,4012.7,5.7773544]
[1761069413454,40.8,4013.3,4013.2,0.44833]
[1761069413654,40.8,4013.3,4013.2,1.20953]
[1761069413961,40.8,4013.3,4013.2,0.7612]
[1761069414459,3.2078,4013.8,4013.6,0.7612]
[1761069414657,3.20989055,4013.8,4013.7,0.7612]
[1761069414857,44.00989055,4013.8,4013.7,0.7612]
[1761069416457,3.20989055,4013.8,4013.7,0.7612]
[1761069416868,0.00209055,4013.8,4013.7,0.7612]
[1761069418459,3.9868,4014.6,4014.4,0.7612]
[1761069418661,0.22710516,4014.5,4014.4,0.7612]
[1761069418968,41.02710516,4014.5,4014.4,1.2094]
[1761069419560,41.02936223,4014.5,4014.4,1.2094]
[1761069419768,0.22936223,4014.5,4014.4,1.2094]
[1761069420069,0.22936223,4014.5,4014.4,0.95283054]
[1761069420070,0.00225707,4014.5,4014.4,0.95283054]
[1761069420470,0.00225707,4014.5,4014.4,1.40103054]
[1761069420665,0.00225707,4014.5,4014.4,0.7612]
[1761069420966,0.779,4014.2,4013.8,0.7612]
[1761069421162,5.22935398,4014.5,4014.3,0.7612]
[1761069421163,0.45044707,4014.5,4014.3,0.7612]
[1761069421357,0.779,4014.2,4013.8,0.63657393]
[1761069421558,0.44826,4013.9,4013.6,3.2078]
[1761069421761,1.22728,4013.7,4013.6,0.7612]
[1761069421965,0.779,4013.4,4013.3,0.44832]
[1761069422164,0.779,4013.6,4013.4,0.7612]
[1761069422365,0.55433835,4013.5,4013.4,0.7612]
[1761069422572,1.22725,4013.9,4013.6,0.7612]
[1761069422769,0.55445102,4013.8,4013.7,1.20948]
[1761069423163,1.33345102,4013.8,4013.7,1.20948]
[1761069423674,0.55445102,4013.8,4013.7,1.20948]
[1761069424375,1.78171102,4013.8,4013.7,0.7612]
[1761069424564,0.55445102,4013.8,4013.7,1.20948]
[1761069424959,0.55445102,4013.8,4013.7,0.7612]
[1761069424960,1.78171102,4013.8,4013.7,0.7612]
[1761069425369,1.78171102,4013.8,4013.2,0.19121653]
[1761069425370,0.779,4013.5,4013.3,0.7612]
[1761069425576,1.33345102,4013.4,4013.3,1.20952]
[1761069425873,1.33345102,4013.4,4013.3,0.7612]
[1761069426468,0.779,4013.2,4013.1,3.969]
[1761069426660,0.779,4013.2,4012.8,0.7612]
[1761069426661,1.22736,4013.0,4012.8,0.7612]
[1761069426863,1.22738,4012.8,4012.7,0.0017544]
[1761069427163,0.779,4012.5,4011.7,0.7612]
[1761069427369,0.779,4011.8,4011.7,0.7612]
[1761069427568,1.33345102,4011.8,4011.7,0.7612]
[1761069427964,0.55445102,4011.8,4011.7,0.7612]
[1761069428168,1.33345102,4011.8,4011.7,0.00321711]
[1761069428475,0.55445102,4011.8,4011.7,5.76441711]
[1761069428671,0.779,4012.9,4012.3,0.7612]
[1761069428874,0.779,4012.7,4012.5,0.7612]
[1761069429173,0.55535461,4012.6,4012.5,1.2096]
[1761069429676,0.55535461,4012.6,4012.5,0.7612]
[1761069431866,1.33435461,4012.6,4012.5,0.7612]
[1761069432067,1.33435461,4012.6,4011.9,0.7612]
[1761069432068,0.779,4012.2,4011.9,0.7612]
[1761069432275,0.55419281,4012.1,4012.0,0.44846]
[1761069432578,0.779,4012.3,4012.1,0.7612]
[1761069432772,0.779,4012.1,4011.9,0.7612]
[1761069433072,0.779,4012.4,4012.2,0.7612]
[1761069433274,0.779,4012.2,4011.9,0.7612]
[1761069433584,0.779,4012.0,4011.8,3.2078]
[1761069433972,0.779,4012.0,4011.9,0.7612]
[1761069434175,1.33251223,4012.0,4011.9,0.7612]
[1761069435580,0.779,4011.9,4011.7,0.76441711]
[1761069435781,0.55351223,4011.8,4011.7,0.76441711]
[1761069437085,0.779,4012.1,4011.9,0.7612]
[1761069437280,0.779,4011.9,4011.7,1.21291711]
[1761069437587,0.779,4011.9,4011.8,0.7612]
[1761069437784,1.33188057,4011.9,4011.8,0.7612]
[1761069438181,1.00136057,4011.9,4011.8,0.7612]
[1761069438380,0.55288057,4011.9,4011.8,0.7612]
[1761069439185,0.89267028,4012.7,4011.9,0.7276]
[1761069439486,0.938,4012.5,4012.4,1.65022]
[1761069439675,1.49061291,4012.5,4012.4,2.13842]
[1761069440282,1.1818,4012.3,4012.2,0.7276]
[1761069440484,0.4635,4012.0,4011.9,0.92268]
[1761069440886,0.4635,4012.0,4011.9,1.41088]
[1761069441079,0.4635,4012.0,4011.9,2.12488]
[1761069442976,0.6763,4012.5,4012.2,1.6388]
[1761069443188,1.01926245,4012.4,4012.3,4.58103]
[1761069443387,1.6059,4012.4,4012.3,3.6579]
[1761069443578,0.9296,4012.4,4012.3,4.3719]
[1761069443781,0.4677,4012.4,4012.3,5.29503]
[1761069443982,0.4677,4012.6,4012.5,0.7378]
[1761069444186,0.4677,4012.6,4012.5,1.90021]
[1761069444687,4.1374,4013.0,4012.9,0.714]
[1761069444886,4.68940352,4013.0,4012.9,1.1641]
[1761069445081,4.68940352,4013.0,4012.9,1.61246]
[1761069445592,4.68940352,4013.0,4012.9,1.1641]
[1761069445890,5.81405352,4013.0,4012.9,1.1641]
[1761069446084,3.75980352,4013.0,4012.6,1.3732]
[1761069446289,0.9296,4012.7,4012.6,1.3732]
[1761069446493,1.6059,4012.7,4012.6,0.4484]
[1761069446693,1.6059,4012.7,4012.6,1.6125]
[1761069446885,0.9296,4012.7,4012.6,1.6125]
[1761069447087,0.9296,4012.7,4012.6,2.0872]
[1761069447484,1.48194722,4012.7,4012.6,2.0872]
[1761069448294,1.48194722,4012.7,4012.6,1.6388]
[1761069448592,2.15824722,4012.7,4012.6,2.0872]
[1761069449290,1.48194722,4012.7,4012.6,1.1624]
[1761069449591,2.15824722,4012.7,4012.6,1.1641]
[1761069450593,2.60663722,4012.7,4012.6,1.1641]
[1761069451085,1.48194722,4012.7,4012.6,2.0872]
[1761069451291,2.15824722,4012.7,4012.6,1.6125]
[1761069451903,1.48194722,4012.7,4012.6,2.0872]
[1761069452592,1.02004722,4012.7,4012.6,2.0872]
[1761069452796,0.55234722,4012.7,4012.6,2.0872]
[1761069452995,2.60663722,4012.7,4012.6,1.6388]
[1761069453299,1.48194722,4012.7,4012.6,2.0872]
[1761069453693,3.2078,4013.0,4012.9,0.44836]
[1761069453999,4.22954181,4013.0,4012.9,2.08716]
[1761069454197,3.76184181,4013.0,4012.9,2.08716]
[1761069454997,0.0068,4014.0,4013.7,1.6388]
[1761069455293,0.0068,4014.0,4013.9,2.08705]
[1761069456699,0.0068,4014.0,4013.9,1.6388]
[1761069458001,0.4745,4014.0,4013.9,1.1641]
[1761069458206,0.4745,4014.0,4013.9,1.6388]
[1761069458502,0.0068,4014.0,4013.9,1.6388]
[1761069458695,0.00047607,4014.0,4013.9,6.6388]
[1761069460401,4.8137,4014.2,4014.1,0.714]
[1761069460607,4.1374,4014.2,4014.1,1.1641]
[1761069460907,4.1374,4014.2,4014.1,1.6388]
[1761069461102,3.6755,4014.2,4014.1,1.6388]
[1761069461497,0.91815707,4014.5,4014.2,0.44822]
[1761069461703,2.05635707,4014.5,4014.4,1.6388]
[1761069462009,1.93229056,4014.5,4014.4,1.6388]
[1761069462206,1.38005707,4014.5,4014.4,1.6388]
[1761069462402,0.00225707,4014.5,4014.4,1.6388]
[1761069462905,0.46995707,4014.5,4014.4,1.6388]
[1761069463101,0.46995707,4014.5,4014.4,1.1641]
[1761069463307,1.38004707,4014.5,4014.4,1.1641]
[1761069463705,1.6059,4014.1,4013.8,0.714]
[1761069463903,4.58564,4014.0,4013.9,10.83435]
[1761069464412,4.58564,4014.0,4013.9,10.8608]
[1761069464908,4.58564,4014.0,4013.9,11.30905]
[1761069465098,4.58564,4014.0,4013.9,10.8608]
[1761069466514,0.93185707,4014.5,4014.4,1.6388]
[1761069466707,0.45044707,4014.5,4014.4,2.087]
[1761069467008,0.00225707,4014.5,4014.4,2.087]
[1761069467210,0.45044707,4014.5,4014.4,2.087]
[1761069467611,0.91814707,4014.5,4014.4,1.6388]
[1761069467810,1.38004707,4014.5,4014.4,1.6388]
[1761069468307,0.44823,4014.2,4014.0,0.2877]
[1761069468607,0.44823,4014.2,4014.1,2.08703]
[1761069468608,0.91593,4014.2,4014.1,2.08703]
[1761069468806,0.91814707,4014.5,4014.4,1.6388]
[1761069469009,1.93251373,4014.5,4014.4,1.6388]
[1761069469204,2.60881373,4014.5,4014.4,1.6388]
[1761069469401,2.60881373,4014.5,4014.4,1.1641]
[1761069469715,1.48432373,4014.5,4014.4,1.6388]
[1761069470008,0.44822,4014.2,4014.1,10.3831]
[1761069470209,2.05412,4014.2,4014.1,9.933]
[1761069470419,1.37782,4014.2,4014.1,1.6388]
[1761069470609,0.8491,4014.0,4013.9,0.645]
[1761069470813,0.8491,4014.0,4013.9,1.0543]
[1761069471113,1.29734,4014.0,4013.9,1.0543]
[1761069471511,1.29735,4013.9,4013.8,10.6805]
[1761069471813,0.45044707,4014.5,4014.4,1.4635]
[1761069472107,1.0034558,4014.5,4014.4,1.4635]
[1761069472313,1.8525558,4014.5,4014.4,1.4635]
[1761069472709,1.4143558,4014.5,4014.4,1.4635]
[1761069473112,2.4472558,4014.5,4014.4,0.645]
[1761069473313,1.8525558,4014.5,4014.4,1.0543]
[1761069473812,1.8525558,4014.5,4014.4,1.4635]
[1761069474007,1.4143558,4014.5,4014.4,1.9117]
[1761069474416,1.0034558,4014.5,4014.4,1.9117]
[1761069475012,1.4143558,4014.5,4014.4,1.9117]
[1761069476110,0.00225707,4014.5,4014.4,6.9117]
[1761069477512,0.00225707,4014.5,4014.4,11.1257]
[1761069478619,0.00225707,4014.5,4014.4,16.1257]
[1761069479012,0.00225707,4014.5,4014.4,10.6775]
[1761069479216,0.00225707,4014.5,4014.4,11.1257]
[1761069479811,0.00225707,4014.5,4014.4,10.6775]
[1761069480116,0.00225707,4014.5,4014.4,11.1257]
[1761069481718,3.2078,4015.6,4015.5,1.7026]
[1761069482024,5.05992631,4015.6,4015.5,10.9136]
[1761069482418,5.65692631,4015.6,4015.5,10.5044]
[1761069482618,9.61506963,4015.6,4014.3,3.2078]
[1761069482815,0.4109,4014.7,4014.6,1.50247]
[1761069483227,1.29726,4014.7,4014.6,1.0543]
[1761069483418,3.6187,4015.1,4015.0,2.15072]
[1761069483619,0.55556946,4015.1,4015.0,2.15291595]
[1761069484217,3.21100332,4015.6,4015.5,2.15067]
[1761069484426,3.21100332,4015.6,4015.5,11.36067]
[1761069484427,3.76666041,4015.6,4015.5,11.36067]
[1761069484717,0.55886041,4015.6,4015.5,14.56847]
[1761069484915,0.44795,4016.6,4016.5,1.7026]
[1761069485119,2.74547699,4016.6,4016.5,1.2934]
[1761069485319,0.4109,4015.6,4015.5,1.74146]
[1761069485524,1.4461,4015.6,4015.5,10.5024]
[1761069485727,2.00152316,4015.6,4015.5,10.5024]
[1761069486228,2.00429891,4015.6,4015.5,10.5024]
[1761069486426,1.40729891,4015.6,4015.5,10.9116]
[1761069486622,0.55819891,4015.6,4015.5,10.9116]
[1761069487535,0.96909891,4015.6,4015.5,10.9116]
[1761069488427,0.55819891,4015.6,4015.5,10.9116]
[1761069489727,0.96909891,4015.6,4015.5,10.9116]
[1761069490034,0.55819891,4015.6,4015.5,11.35967]
[1761069490820,0.00277575,4015.6,4015.5,11.35967]
[1761069491029,0.89240312,4016.8,4016.7,1.4635]
[1761069491326,1.40431663,4016.8,4016.7,1.4635]
[1761069491526,1.85223663,4016.8,4016.7,1.4635]
[1761069491724,1.40431663,4016.8,4016.7,1.91143]
[1761069492126,0.55703488,4016.8,4016.7,1.91143]
[1761069492525,1.00496488,4016.8,4016.7,1.91143]
[1761069492932,0.55703488,4016.8,4016.7,1.91143]
[1761069493431,0.00181825,4016.8,4016.7,1.91143]
[1761069496533,0.00181825,4016.8,4016.7,1.87949764]
[1761069496934,0.00181825,4016.8,4016.7,5.08729764]
[1761069497330,0.00181825,4016.8,4016.7,10.08729764]
[1761069497531,3.2078,4018.1,4018.0,1.7026]
[1761069497737,3.2078,4018.1,4018.0,10.9036]
[1761069497935,4.0569,4018.1,4018.0,10.9036]
[1761069498134,3.2078,4018.6,4018.5,1.50534]
[1761069498443,3.20978379,4018.6,4018.5,11.35356727]
[1761069500135,3.20978379,4018.6,4018.5,10.90582727]
[1761069500729,3.96208379,4018.6,4018.5,1.05652727]
[1761069500935,4.46898379,4018.6,4018.5,0.00222727]
[1761069501135,8.71668379,4018.6,4018.5,0.00222727]
[1761069501336,1.11945,4018.3,4017.2,3.2078]
[1761069501532,3.2078,4017.9,4017.7,0.5836]
[1761069501732,3.65561,4017.9,4017.7,0.5836]
[1761069502144,0.44783,4017.7,4017.6,4.5231]
[1761069502440,0.44783,4017.7,4017.6,4.52613269]
[1761069502638,0.44783,4017.7,4017.6,5.10973269]
[1761069502837,3.2078,4017.9,4017.6,4.52613269]
[1761069503038,3.2078,4017.9,4017.8,0.5836]
[1761069503634,0.44778,4018.3,4018.2,0.2361]
[1761069503944,3.65554,4018.5,4018.4,0.5836]
[1761069504137,3.2078,4018.5,4018.4,0.5836]
[1761069506042,3.2078,4018.5,4018.4,1.03135]
[1761069506346,3.65554,4018.5,4018.4,0.5836]
[1761069506740,4.02164,4018.5,4018.4,1.78995]
[1761069508036,4.02164,4018.5,4018.4,1.3422]
[1761069508236,0.5069,4018.3,4017.9,0.5836]
[1761069508440,1.20011,4018.0,4017.9,1.3422]
[1761069508837,1.70701,4018.0,4017.9,0.5836]
[1761069509037,1.20011,4018.0,4017.9,0.9525]
[1761069509233,1.20011,4018.0,4017.9,0.5836]
[1761069509438,0.81391,4018.0,4017.9,1.3422]
[1761069511840,1.20013,4017.7,4017.6,5.33293269]
[1761069512042,1.70703,4017.7,4017.6,0.95553269]
[1761069512445,1.20013,4017.7,4017.6,1.19163269]
[1761069513150,3.65559,4018.1,4018.0,1.5783]
[1761069513349,4.40789,4018.1,4018.0,10.7693]
[1761069515350,4.02169,4018.1,4018.0,10.7693]
[1761069516546,3.65559,4018.1,4018.0,10.7693]
[1761069517144,4.40789,4018.1,4018.0,10.1435]
[1761069517337,4.40789,4018.1,4018.0,10.5332]
[1761069517540,4.02169,4018.1,4018.0,10.7693]
[1761069517848,4.40789,4018.1,4018.0,10.7693]
[1761069518462,4.02169,4018.1,4018.0,10.7693]
[1761069518959,4.91479,4018.1,4018.0,10.3796]
[1761069519154,0.44783,4017.7,4017.6,0.99773269]
[1761069519363,1.20013,4017.7,4017.6,9.50173269]
[1761069519859,1.20013,4017.7,4017.6,10.08533269]
[1761069520649,0.81393,4017.7,4017.6,10.08533269]
[1761069521252,0.44783,4017.7,4017.6,10.08533269]
[1761069521452,0.44782,4017.8,4017.6,10.53317269]
[1761069521652,4.10020312,4018.1,4018.0,1.5783]
[1761069521959,3.65559,4018.1,4018.0,10.7643]
[1761069522260,4.02169,4018.1,4018.0,10.7643]
[1761069522454,4.40789,4018.1,4018.0,10.7643]
[1761069522652,3.5739,4018.1,4018.0,10.7643]
[1761069522852,3.65559,4018.1,4018.0,10.7643]
[1761069523256,5.52733666,4018.1,4018.0,10.7643]
[1761069523447,4.77503666,4018.1,4018.0,10.7643]
[1761069523653,4.77503666,4018.1,4018.0,11.2121]
[1761069523960,4.77503666,4018.1,4018.0,10.7643]
[1761069524160,3.88263354,4018.1,4018.0,10.7643]
[1761069524362,5.21975526,4018.1,4018.0,10.7643]
[1761069525760,5.21975526,4018.1,4018.0,11.2121]
[1761069526060,5.21975526,4018.1,4018.0,10.7643]
[1761069526257,3.88263354,4018.1,4018.0,10.7643]